{"text_format":"1","workbook":"xlsx","n_sheets":2,"sheets":["Лист1 (2)","Лист1"],"not_rendered":{"charts":0,"images":0,"macros":1,"external_links":0,"defined_names":2,"comments":0,"pivot_tables":0},"unopened":[],"bounds":{"document_bytes":16777216,"sheet_cells":100000,"rows_first":2000,"rows_last":500,"rows_between":2000,"halvings":0,"cell_chars":16384,"cell_head_chars":4096},"cells_cut":0,"cells_raw":0,"read":"whole","date_system":"1900"}

{"sheet":"Лист1 (2)","index":0,"n_rows":29,"n_cols":9,"rows_kept":29,"cut":false,"hidden":false,"merged":[]}
[]
[null,"Таблица 1",null,null,null,null,"Таблица 2"]
[]
[null,"Контрагент","Сумма ","Код статьи","Статья",null,{"$f":"D4","v":"Код статьи"},{"$f":"B4","v":"Контрагент"},"Сумма "]
[null,"Контрагент 1",10000,1213600,"Материалы: Оборудование для видеонаблюдения, для КХО",null,"блок1","Материалы: Оборудование для видеонаблюдения, для КХО"]
[null,"Контрагент 1",5000,1214100,"Материалы: ИТ: Компьютеры, оргтехника, комплектующие",null,1213600,{"$f":"B5","v":"Контрагент 1"},{"$f":"C5","v":10000}]
[null,"Контрагент 2",100,1214100,"Материалы: ИТ: Компьютеры, оргтехника, комплектующие",null,1213600,{"$f":"B13","v":"Контрагент 9"},{"$f":"C13","v":700}]
[null,"Контрагент 3",200,1215100,"Материалы: Хозтовары",null,1213600]
[null,"Контрагент 5",300,1234700,"Транспортные расходы: Парковка транспорта",null,1213600]
[null,"Контрагент 5",400,1234800,"Транспортные расходы: Стоянка, мойка, транспорта",null,"блок2",{"$f":"E6","v":"Материалы: ИТ: Компьютеры, оргтехника, комплектующие"}]
[null,"Контрагент 5",500,1237100,"Услуги по ОТиТБ: Медосмотры, предрейсовые осмотры водителей",null,1214100,{"$f":"B6","v":"Контрагент 1"},{"$f":"C6","v":5000}]
[null,"Контрагент 6",600,1232800,"Коммунальные платежи",null,1214100,{"$f":"B7","v":"Контрагент 2"},{"$f":"C7","v":100}]
[null,"Контрагент 9",700,1213600,"Материалы: Оборудование для видеонаблюдения, для КХО",null,1214100]
[null,"Контрагент 10",800,1221100,"Аренда КХО",null,1214100]
[null,"Контрагент 10",900,1221200,"Аренда оборудования",null,"блок3",{"$f":"E8","v":"Материалы: Хозтовары"}]
[null,"Контрагент 10",1000,1221300,"Аренда оружия",null,1215100,{"$f":"B8","v":"Контрагент 3"},{"$f":"C8","v":200}]
[null,"Контрагент 10",1100,1221400,"Аренда помещений",null,1215100,{"$f":"B18","v":"Контрагент 14"},{"$f":"C18","v":1200}]
[null,"Контрагент 14",1200,1215100,"Материалы: Хозтовары",null,1215100,{"$f":"B23","v":"Контрагент 19"},{"$f":"C23","v":1700}]
[null,"Контрагент 15",1300,1234700,"Транспортные расходы: Парковка транспорта",null,1215100,{"$f":"B24","v":"Контрагент 20"},{"$f":"C24","v":1800}]
[null,"Контрагент 16",1400,1234800,"Транспортные расходы: Стоянка, мойка, транспорта",null,"блок4",{"$f":"E9","v":"Транспортные расходы: Парковка транспорта"}]
[null,"Контрагент 17",1500,1237100,"Услуги по ОТиТБ: Медосмотры, предрейсовые осмотры водителей",null,1234700,{"$f":"B9","v":"Контрагент 5"},{"$f":"C9","v":300}]
[null,"Контрагент 18",1600,1232800,"Коммунальные платежи",null,1234700,{"$f":"B19","v":"Контрагент 15"},{"$f":"C19","v":1300}]
[null,"Контрагент 19",1700,1215100,"Материалы: Хозтовары",null,1234700]
[null,"Контрагент 20",1800,1215100,"Материалы: Хозтовары",null,1234700]
[null,null,null,null,null,null,"блок5",{"$f":"E10","v":"Транспортные расходы: Стоянка, мойка, транспорта"}]
[null,null,null,null,null,null,{"$f":"D20","v":1234800},{"$f":"B10","v":"Контрагент 5"},{"$f":"C10","v":400}]
[null,null,null,null,null,null,1234800,{"$f":"B20","v":"Контрагент 16"},{"$f":"C20","v":1400}]
[null,null,null,null,null,null,1234800]
[null,null,null,null,null,null,1234800]

{"sheet":"Лист1","index":1,"n_rows":25,"n_cols":9,"rows_kept":25,"cut":false,"hidden":false,"merged":[]}
[]
[null,"Таблица 1",null,null,null,null,"Таблица 2"]
[]
[null,"Контрагент","Сумма ","Код статьи","Статья",null,{"$f":"D4","v":"Код статьи"},{"$f":"B4","v":"Контрагент"},"Сумма "]
[null,"Контрагент 1",10000,1213600,"Материалы: Оборудование для видеонаблюдения, для КХО"]
[null,"Контрагент 1",5000,1214100,"Материалы: ИТ: Компьютеры, оргтехника, комплектующие"]
[null,"Контрагент 2",100,1214100,"Материалы: ИТ: Компьютеры, оргтехника, комплектующие"]
[null,"Контрагент 3",200,1215100,"Материалы: Хозтовары"]
[null,"Контрагент 5",300,1234700,"Транспортные расходы: Парковка транспорта"]
[null,"Контрагент 5",400,1234800,"Транспортные расходы: Стоянка, мойка, транспорта"]
[null,"Контрагент 5",500,1237100,"Услуги по ОТиТБ: Медосмотры, предрейсовые осмотры водителей"]
[null,"Контрагент 6",600,1232800,"Коммунальные платежи"]
[null,"Контрагент 9",700,1213600,"Материалы: Оборудование для видеонаблюдения, для КХО"]
[null,"Контрагент 10",800,1221100,"Аренда КХО"]
[null,"Контрагент 10",900,1221200,"Аренда оборудования"]
[null,"Контрагент 10",1000,1221300,"Аренда оружия"]
[null,"Контрагент 10",1100,1221400,"Аренда помещений"]
[null,"Контрагент 14",1200,1215100,"Материалы: Хозтовары"]
[null,"Контрагент 15",1300,1234700,"Транспортные расходы: Парковка транспорта"]
[null,"Контрагент 16",1400,1234800,"Транспортные расходы: Стоянка, мойка, транспорта"]
[null,"Контрагент 17",1500,1237100,"Услуги по ОТиТБ: Медосмотры, предрейсовые осмотры водителей"]
[null,"Контрагент 18",1600,1232800,"Коммунальные платежи"]
[null,"Контрагент 19",1700,1215100,"Материалы: Хозтовары"]
[null,"Контрагент 20",1800,1215100,"Материалы: Хозтовары"]
[null,"Контрагент 20",1800,1215100,"Материалы: Хозтовары"]